[Event "Titled Tuesday Blitz October 31 Late 2023"]
[White "Polaczek, Richard"]
[Black "Colbow, Collin"]
[WhiteFideId "200026"]
[BlackFideId "16201132"]
[WhiteElo "2418"]
[BlackElo "2588"]
[Result "1-0"]
[Round "6"]
[TimeControl "180+1"]
[Date "2023.10.31"]
[WhiteClock "0:00:48"]
[BlackClock "0:00:06"]
[Board "84"]

1. d4 {[%clk 0:03:00]}  Nf6 {[%clk 0:02:46]} 2. Bg5 {[%clk 0:02:59]}  g6 {[%clk 0:02:47]} 3. Bxf6 {[%clk 0:02:58]}  exf6 {[%clk 0:02:48]} 4. c4 {[%clk 0:02:58]}  Bg7 {[%clk 0:02:47]} 5. Nc3 {[%clk 0:02:58]}  O-O {[%clk 0:02:47]} 6. e3 {[%clk 0:02:58]}  f5 {[%clk 0:02:48]} 7. g3 {[%clk 0:02:58]}  d6 {[%clk 0:02:48]} 8. Bg2 {[%clk 0:02:58]}  Re8 {[%clk 0:02:48]} 9. Nge2 {[%clk 0:02:57]}  Nd7 {[%clk 0:02:47]} 10. O-O {[%clk 0:02:56]}  Nf6 {[%clk 0:02:47]} 11. Qd3 {[%clk 0:02:56]}  c6 {[%clk 0:02:47]} 12. b4 {[%clk 0:02:56]}  Rb8 {[%clk 0:02:44]} 13. a4 {[%clk 0:02:51]}  Qe7 {[%clk 0:02:42]} 14. b5 {[%clk 0:02:49]}  Bd7 {[%clk 0:02:41]} 15. a5 {[%clk 0:02:45]}  Ne4 {[%clk 0:02:40]} 16. a6 {[%clk 0:02:37]}  b6 {[%clk 0:02:24]} 17. bxc6 {[%clk 0:02:26]}  Bxc6 {[%clk 0:02:25]} 18. Nf4 {[%clk 0:02:25]}  Qd7 {[%clk 0:02:14]} 19. Nfd5 {[%clk 0:01:49]}  b5 {[%clk 0:01:45]} 20. cxb5 {[%clk 0:01:43]}  Bxd5 {[%clk 0:01:20]} 21. Nxd5 {[%clk 0:01:41]}  Rec8 {[%clk 0:01:17]} 22. b6 {[%clk 0:01:33]}  Rc6 {[%clk 0:00:49]} 23. bxa7 {[%clk 0:01:24]}  Qxa7 {[%clk 0:00:50]} 24. Bxe4 {[%clk 0:01:20]}  fxe4 {[%clk 0:00:50]} 25. Qxe4 {[%clk 0:01:20]}  Rxa6 {[%clk 0:00:49]} 26. Rab1 {[%clk 0:01:11]}  Rf8 {[%clk 0:00:13]} 27. Rb7 {[%clk 0:01:00]}  Qa8 {[%clk 0:00:13]} 28. Nc7 {[%clk 0:00:52]}  f5 {[%clk 0:00:06]} 29. Qd5+ {[%clk 0:00:48]} 1-0


[Site "https://www.chess.com"]

[Event "Titled Tuesday Blitz October 31 Late 2023"]
[White "el_sporco"]
[Black "Deeper44"]
[WhiteElo "2413"]
[BlackElo "2527"]
[Result "0-1"]
[Round "6"]
[TimeControl "180+1"]
[Date "2023.10.31"]
[WhiteClock "0:01:18"]
[BlackClock "0:00:10"]
[Board "88"]

1. e4 {[%clk 0:02:54]}  e6 {[%clk 0:02:59]} 2. d4 {[%clk 0:02:54]}  d5 {[%clk 0:03:00]} 3. Nc3 {[%clk 0:02:55]}  Nf6 {[%clk 0:03:00]} 4. e5 {[%clk 0:02:52]}  Nfd7 {[%clk 0:03:00]} 5. f4 {[%clk 0:02:53]}  c5 {[%clk 0:03:01]} 6. Nf3 {[%clk 0:02:54]}  Nc6 {[%clk 0:03:01]} 7. Be3 {[%clk 0:02:54]}  Be7 {[%clk 0:03:02]} 8. Qd2 {[%clk 0:02:54]}  a6 {[%clk 0:03:03]} 9. O-O-O {[%clk 0:02:54]}  c4 {[%clk 0:03:03]} 10. f5 {[%clk 0:02:53]}  b5 {[%clk 0:02:57]} 11. fxe6 {[%clk 0:02:48]}  fxe6 {[%clk 0:02:57]} 12. Ng5 {[%clk 0:02:49]}  Nb6 {[%clk 0:02:42]} 13. h4 {[%clk 0:02:37]}  b4 {[%clk 0:02:42]} 14. Nb1 {[%clk 0:02:36]}  Na4 {[%clk 0:02:41]} 15. b3 {[%clk 0:02:28]}  Nc3 {[%clk 0:02:12]} 16. Nxc3 {[%clk 0:02:16]}  bxc3 {[%clk 0:02:08]} 17. Qf2 {[%clk 0:01:59]}  Rf8 {[%clk 0:01:59]} 18. Qg3 {[%clk 0:01:55]}  Qa5 {[%clk 0:01:44]} 19. Kb1 {[%clk 0:01:55]}  Nb4 {[%clk 0:01:09]} 20. a4 {[%clk 0:01:52]}  cxb3 {[%clk 0:01:06]} 21. cxb3 {[%clk 0:01:38]}  c2+ {[%clk 0:01:05]} 22. Kc1 {[%clk 0:01:39]}  Na2+ {[%clk 0:00:22]} 23. Kxc2 {[%clk 0:01:35]}  Qc3+ {[%clk 0:00:22]} 24. Kb1 {[%clk 0:01:35]}  Qxb3+ {[%clk 0:00:17]} 25. Ka1 {[%clk 0:01:35]}  Nc3 {[%clk 0:00:12]} 26. Bc4 {[%clk 0:01:17]}  Qa3+ {[%clk 0:00:11]} 27. Ba2 {[%clk 0:01:18]}  Qxa2# {[%clk 0:00:10]} 0-1


[Site "https://www.chess.com"]

[Event "Titled Tuesday Blitz October 31 Late 2023"]
[White "Toncheva, Nadya"]
[Black "Lopez Idarraga, Daniel Eduardo"]
[WhiteFideId "2924056"]
[BlackFideId "4405501"]
[WhiteElo "2517"]
[BlackElo "2407"]
[Result "1-0"]
[Round "6"]
[TimeControl "180+1"]
[Date "2023.10.31"]
[WhiteClock "0:00:07"]
[BlackClock "0:00:46"]
[Board "91"]

1. e4 {[%clk 0:03:00]}  c5 {[%clk 0:02:59]} 2. c3 {[%clk 0:03:00]}  e6 {[%clk 0:02:59]} 3. d4 {[%clk 0:02:59]}  d5 {[%clk 0:03:00]} 4. exd5 {[%clk 0:02:59]}  exd5 {[%clk 0:03:01]} 5. Nf3 {[%clk 0:02:59]}  Nf6 {[%clk 0:03:02]} 6. Bb5+ {[%clk 0:02:59]}  Nc6 {[%clk 0:03:02]} 7. Qe2+ {[%clk 0:02:57]}  Be6 {[%clk 0:02:59]} 8. O-O {[%clk 0:02:45]}  a6 {[%clk 0:02:56]} 9. Ba4 {[%clk 0:02:38]}  b5 {[%clk 0:02:55]} 10. Bc2 {[%clk 0:02:39]}  cxd4 {[%clk 0:02:54]} 11. cxd4 {[%clk 0:02:37]}  Be7 {[%clk 0:02:50]} 12. a4 {[%clk 0:02:25]}  b4 {[%clk 0:02:35]} 13. Nbd2 {[%clk 0:02:20]}  O-O {[%clk 0:02:33]} 14. Nb3 {[%clk 0:02:17]}  Na5 {[%clk 0:02:33]} 15. Bf4 {[%clk 0:02:09]}  Nc4 {[%clk 0:02:27]} 16. Ng5 {[%clk 0:02:01]}  Bg4 {[%clk 0:02:21]} 17. Qd3 {[%clk 0:01:44]}  Nxb2 {[%clk 0:02:01]} 18. Qg3 {[%clk 0:01:40]}  Bh5 {[%clk 0:01:58]} 19. Rfe1 {[%clk 0:01:13]}  Bg6 {[%clk 0:01:56]} 20. Bxg6 {[%clk 0:01:09]}  hxg6 {[%clk 0:01:57]} 21. Nc5 {[%clk 0:00:32]}  Nh5 {[%clk 0:01:54]} 22. Qh4 {[%clk 0:00:30]}  Bxc5 {[%clk 0:01:37]} 23. dxc5 {[%clk 0:00:30]}  Nd3 {[%clk 0:01:38]} 24. g4 {[%clk 0:00:17]}  Nxe1 {[%clk 0:01:31]} 25. Rxe1 {[%clk 0:00:15]}  Re8 {[%clk 0:01:20]} 26. Rxe8+ {[%clk 0:00:12]}  Qxe8 {[%clk 0:01:21]} 27. gxh5 {[%clk 0:00:12]}  Qe1+ {[%clk 0:01:09]} 28. Kg2 {[%clk 0:00:12]}  Qb1 {[%clk 0:01:09]} 29. h6 {[%clk 0:00:08]}  Qd1 {[%clk 0:00:55]} 30. h7+ {[%clk 0:00:07]}  Kf8 {[%clk 0:00:48]} 31. h8=Q+ {[%clk 0:00:07]}  Ke7 {[%clk 0:00:46]} 32. Qxg7 {[%clk 0:00:07]} 1-0


[Site "https://www.chess.com"]

[Event "Titled Tuesday Blitz October 31 Late 2023"]
[White "Tikhonov, Viacheslav"]
[Black "Kazakov, Mikhail"]
[WhiteFideId "44196407"]
[BlackFideId "14102749"]
[WhiteElo "2505"]
[BlackElo "2383"]
[Result "1-0"]
[Round "6"]
[TimeControl "180+1"]
[Date "2023.10.31"]
[WhiteClock "0:00:08"]
[BlackClock "0:00:06"]
[Board "94"]

1. e4 {[%clk 0:03:00]}  e5 {[%clk 0:02:51]} 2. Nf3 {[%clk 0:03:00]}  Nc6 {[%clk 0:02:51]} 3. Bc4 {[%clk 0:03:01]}  Bc5 {[%clk 0:02:47]} 4. O-O {[%clk 0:03:01]}  d6 {[%clk 0:02:44]} 5. d3 {[%clk 0:03:00]}  h6 {[%clk 0:02:42]} 6. c3 {[%clk 0:02:58]}  Nf6 {[%clk 0:02:38]} 7. b4 {[%clk 0:02:55]}  Bb6 {[%clk 0:02:37]} 8. a4 {[%clk 0:02:56]}  a5 {[%clk 0:02:34]} 9. b5 {[%clk 0:02:56]}  Ne7 {[%clk 0:02:33]} 10. Be3 {[%clk 0:02:54]}  O-O {[%clk 0:02:28]} 11. Nbd2 {[%clk 0:02:46]}  Ng6 {[%clk 0:02:25]} 12. Re1 {[%clk 0:02:40]}  c6 {[%clk 0:02:17]} 13. bxc6 {[%clk 0:02:30]}  bxc6 {[%clk 0:02:18]} 14. Rb1 {[%clk 0:02:30]}  Bxe3 {[%clk 0:02:12]} 15. fxe3 {[%clk 0:02:31]}  d5 {[%clk 0:02:11]} 16. exd5 {[%clk 0:02:23]}  cxd5 {[%clk 0:02:12]} 17. Bb5 {[%clk 0:02:18]}  Bd7 {[%clk 0:01:57]} 18. Qe2 {[%clk 0:02:10]}  Re8 {[%clk 0:01:46]} 19. c4 {[%clk 0:02:06]}  dxc4 {[%clk 0:01:33]} 20. dxc4 {[%clk 0:01:56]}  Bxb5 {[%clk 0:01:27]} 21. axb5 {[%clk 0:01:41]}  a4 {[%clk 0:01:24]} 22. c5 {[%clk 0:01:38]}  Nd5 {[%clk 0:01:17]} 23. Qc4 {[%clk 0:01:30]}  a3 {[%clk 0:01:14]} 24. Ne4 {[%clk 0:01:19]}  a2 {[%clk 0:00:47]} 25. Ra1 {[%clk 0:01:18]}  Ra3 {[%clk 0:00:48]} 26. Nd6 {[%clk 0:01:18]}  Nge7 {[%clk 0:00:19]} 27. e4 {[%clk 0:01:10]}  Rc3 {[%clk 0:00:14]} 28. Qxa2 {[%clk 0:01:00]}  Rxc5 {[%clk 0:00:13]} 29. Nxe8 {[%clk 0:00:58]}  Nf4 {[%clk 0:00:12]} 30. Qa8 {[%clk 0:00:53]}  Rc8 {[%clk 0:00:11]} 31. Qb7 {[%clk 0:00:20]}  Qxe8 {[%clk 0:00:11]} 32. Nxe5 {[%clk 0:00:20]}  f6 {[%clk 0:00:11]} 33. Nc6 {[%clk 0:00:12]}  Nxc6 {[%clk 0:00:07]} 34. bxc6 {[%clk 0:00:13]}  Rb8 {[%clk 0:00:08]} 35. Qd7 {[%clk 0:00:11]}  Qg6 {[%clk 0:00:08]} 36. Ra2 {[%clk 0:00:09]}  Kh7 {[%clk 0:00:03]} 37. c7 {[%clk 0:00:09]}  Ra8 {[%clk 0:00:03]} 38. Rd2 {[%clk 0:00:07]}  Nh3+ {[%clk 0:00:02]} 39. Qxh3 {[%clk 0:00:06]}  Qg5 {[%clk 0:00:03]} 40. Qe3 {[%clk 0:00:06]}  Qxe3+ {[%clk 0:00:02]} 41. Rxe3 {[%clk 0:00:07]}  Rc8 {[%clk 0:00:03]} 42. Rc3 {[%clk 0:00:07]}  Kg6 {[%clk 0:00:03]} 43. Rd8 {[%clk 0:00:07]}  Kf7 {[%clk 0:00:04]} 44. Rxc8 {[%clk 0:00:07]}  Ke6 {[%clk 0:00:05]} 45. Rg8 {[%clk 0:00:07]}  Ke5 {[%clk 0:00:05]} 46. c8=Q {[%clk 0:00:07]}  Kd4 {[%clk 0:00:06]} 47. Rd8+ {[%clk 0:00:07]}  Ke5 {[%clk 0:00:06]} 48. Qf5# {[%clk 0:00:08]} 1-0


[Site "https://www.chess.com"]

[Event "Titled Tuesday Blitz October 31 Late 2023"]
[White "Bogaudinov, Rushan"]
[Black "Santos Flores, Alberto"]
[WhiteFideId "4129288"]
[BlackFideId "3601234"]
[WhiteElo "2361"]
[BlackElo "2499"]
[Result "1-0"]
[Round "6"]
[TimeControl "180+1"]
[Date "2023.10.31"]
[WhiteClock "0:01:30"]
[BlackClock "0:01:17"]
[Board "95"]

1. d4 {[%clk 0:03:00]}  d5 {[%clk 0:03:00]} 2. c4 {[%clk 0:02:59]}  c6 {[%clk 0:03:00]} 3. Nc3 {[%clk 0:02:59]}  Nf6 {[%clk 0:03:00]} 4. e3 {[%clk 0:03:00]}  a6 {[%clk 0:03:00]} 5. c5 {[%clk 0:02:59]}  e5 {[%clk 0:02:57]} 6. b4 {[%clk 0:02:54]}  exd4 {[%clk 0:02:54]} 7. Qxd4 {[%clk 0:02:52]}  Nbd7 {[%clk 0:02:46]} 8. Nf3 {[%clk 0:02:52]}  g6 {[%clk 0:02:46]} 9. Bb2 {[%clk 0:02:51]}  Bg7 {[%clk 0:02:46]} 10. Qd2 {[%clk 0:02:46]}  O-O {[%clk 0:02:46]} 11. Be2 {[%clk 0:02:42]}  Ng4 {[%clk 0:02:29]} 12. O-O {[%clk 0:02:40]}  Nge5 {[%clk 0:02:29]} 13. Nd4 {[%clk 0:02:37]}  Nf6 {[%clk 0:02:29]} 14. a4 {[%clk 0:02:33]}  Qe7 {[%clk 0:02:28]} 15. b5 {[%clk 0:02:29]}  axb5 {[%clk 0:02:28]} 16. axb5 {[%clk 0:02:29]}  Rxa1 {[%clk 0:02:28]} 17. Rxa1 {[%clk 0:02:29]}  Qxc5 {[%clk 0:02:28]} 18. Ba3 {[%clk 0:02:29]}  Qa7 {[%clk 0:02:23]} 19. bxc6 {[%clk 0:02:18]}  Nxc6 {[%clk 0:02:04]} 20. Ncb5 {[%clk 0:02:03]}  Qa4 {[%clk 0:01:55]} 21. Qc1 {[%clk 0:01:51]}  Nxd4 {[%clk 0:01:37]} 22. Nxd4 {[%clk 0:01:41]}  Rd8 {[%clk 0:01:31]} 23. Bb5 {[%clk 0:01:38]}  Qa5 {[%clk 0:01:21]} 24. Be7 {[%clk 0:01:31]}  Qb6 {[%clk 0:01:20]} 25. Bxd8 {[%clk 0:01:30]}  Qxd8 {[%clk 0:01:17]} 26. Ra8 {[%clk 0:01:30]} 1-0


[Site "https://www.chess.com"]

[Event "Titled Tuesday Blitz October 31 Late 2023"]
[White "Bilan, Danila"]
[Black "PapaieDudu"]
[WhiteFideId "24161918"]
[WhiteElo "2465"]
[BlackElo "2311"]
[Result "1-0"]
[Round "6"]
[TimeControl "180+1"]
[Date "2023.10.31"]
[WhiteClock "0:00:05"]
[BlackClock "0:00:58"]
[Board "100"]

1. d4 {[%clk 0:03:00]}  d5 {[%clk 0:03:00]} 2. Nf3 {[%clk 0:02:56]}  Nf6 {[%clk 0:03:00]} 3. c4 {[%clk 0:02:56]}  e6 {[%clk 0:03:01]} 4. Nc3 {[%clk 0:02:55]}  a6 {[%clk 0:02:59]} 5. cxd5 {[%clk 0:02:55]}  exd5 {[%clk 0:03:00]} 6. Bg5 {[%clk 0:02:56]}  Be7 {[%clk 0:03:00]} 7. e3 {[%clk 0:02:56]}  Nbd7 {[%clk 0:03:00]} 8. Bd3 {[%clk 0:02:56]}  O-O {[%clk 0:03:00]} 9. O-O {[%clk 0:02:56]}  Re8 {[%clk 0:03:01]} 10. Rc1 {[%clk 0:02:52]}  Nf8 {[%clk 0:03:00]} 11. Ne5 {[%clk 0:02:52]}  Ne6 {[%clk 0:02:55]} 12. Bh4 {[%clk 0:02:48]}  c6 {[%clk 0:02:53]} 13. f4 {[%clk 0:02:43]}  h6 {[%clk 0:02:50]} 14. Bb1 {[%clk 0:02:22]}  Rf8 {[%clk 0:02:49]} 15. Qc2 {[%clk 0:02:16]}  Re8 {[%clk 0:02:34]} 16. Bxf6 {[%clk 0:02:01]}  Bxf6 {[%clk 0:02:34]} 17. Qh7+ {[%clk 0:02:01]}  Kf8 {[%clk 0:02:34]} 18. Ne2 {[%clk 0:01:27]}  Nc7 {[%clk 0:02:29]} 19. Ng3 {[%clk 0:01:20]}  Nb5 {[%clk 0:02:25]} 20. Bf5 {[%clk 0:00:53]}  Nd6 {[%clk 0:02:23]} 21. Bxc8 {[%clk 0:00:50]}  Rxc8 {[%clk 0:02:21]} 22. Nh5 {[%clk 0:00:44]}  Ne4 {[%clk 0:02:12]} 23. Rf3 {[%clk 0:00:28]}  c5 {[%clk 0:01:42]} 24. Rcf1 {[%clk 0:00:27]}  cxd4 {[%clk 0:01:33]} 25. exd4 {[%clk 0:00:28]}  Qb6 {[%clk 0:01:30]} 26. Nd7+ {[%clk 0:00:26]}  Ke7 {[%clk 0:01:30]} 27. Nxb6 {[%clk 0:00:27]}  Bxd4+ {[%clk 0:01:31]} 28. Kh1 {[%clk 0:00:26]}  Bxb6 {[%clk 0:01:25]} 29. Qxg7 {[%clk 0:00:19]}  Rc6 {[%clk 0:01:20]} 30. Qe5+ {[%clk 0:00:17]}  Re6 {[%clk 0:01:20]} 31. Qxd5 {[%clk 0:00:17]}  Rd8 {[%clk 0:01:21]} 32. Qxb7+ {[%clk 0:00:16]}  Rd7 {[%clk 0:01:21]} 33. Qxa6 {[%clk 0:00:15]}  Nf2+ {[%clk 0:01:19]} 34. R3xf2 {[%clk 0:00:15]}  Bxf2 {[%clk 0:01:18]} 35. Qa3+ {[%clk 0:00:14]}  Kd8 {[%clk 0:01:13]} 36. Qf8+ {[%clk 0:00:08]}  Re8 {[%clk 0:01:13]} 37. Qxh6 {[%clk 0:00:07]}  Bd4 {[%clk 0:01:12]} 38. Qg5+ {[%clk 0:00:07]}  Kc7 {[%clk 0:01:09]} 39. Rc1+ {[%clk 0:00:06]}  Kd6 {[%clk 0:01:09]} 40. Nf6 {[%clk 0:00:06]}  Bxb2 {[%clk 0:00:58]} 41. Qc5+ {[%clk 0:00:05]}  Ke6 {[%clk 0:00:58]} 42. Re1+ {[%clk 0:00:05]}  Kxf6 {[%clk 0:00:58]} 43. Qg5# {[%clk 0:00:05]} 1-0


[Site "https://www.chess.com"]

[Event "Titled Tuesday Blitz October 31 Late 2023"]
[White "Rakitic2010"]
[Black "Fominykh, Maria"]
[BlackFideId "4142411"]
[WhiteElo "2461"]
[BlackElo "2310"]
[Result "1-0"]
[Round "6"]
[TimeControl "180+1"]
[Date "2023.10.31"]
[WhiteClock "0:00:14"]
[BlackClock "0:00:00"]
[Board "101"]

1. e4 {[%clk 0:03:00]}  e6 {[%clk 0:03:00]} 2. d4 {[%clk 0:03:00]}  d5 {[%clk 0:03:00]} 3. Nc3 {[%clk 0:03:00]}  Nf6 {[%clk 0:03:00]} 4. e5 {[%clk 0:02:59]}  Nfd7 {[%clk 0:03:01]} 5. f4 {[%clk 0:03:00]}  c5 {[%clk 0:03:01]} 6. Nf3 {[%clk 0:03:01]}  Nc6 {[%clk 0:03:02]} 7. Be3 {[%clk 0:03:01]}  a6 {[%clk 0:03:02]} 8. Qd2 {[%clk 0:02:58]}  b5 {[%clk 0:03:03]} 9. dxc5 {[%clk 0:02:57]}  Bxc5 {[%clk 0:03:01]} 10. Bd3 {[%clk 0:02:56]}  d4 {[%clk 0:02:50]} 11. Nxd4 {[%clk 0:02:56]}  Nxd4 {[%clk 0:02:48]} 12. Ne4 {[%clk 0:02:47]}  Bb7 {[%clk 0:02:16]} 13. Nxc5 {[%clk 0:02:42]}  Nxc5 {[%clk 0:02:12]} 14. Bxd4 {[%clk 0:02:42]}  Nxd3+ {[%clk 0:02:08]} 15. Qxd3 {[%clk 0:02:41]}  Qd5 {[%clk 0:02:00]} 16. b3 {[%clk 0:02:22]}  O-O-O {[%clk 0:01:01]} 17. O-O-O {[%clk 0:02:21]}  Qxg2 {[%clk 0:00:37]} 18. Rhg1 {[%clk 0:02:16]}  Qxh2 {[%clk 0:00:37]} 19. Qc3+ {[%clk 0:02:05]}  Kb8 {[%clk 0:00:36]} 20. Qc5 {[%clk 0:02:04]}  Qxf4+ {[%clk 0:00:28]} 21. Be3 {[%clk 0:01:54]}  Qf3 {[%clk 0:00:20]} 22. Qa7+ {[%clk 0:01:35]}  Kc8 {[%clk 0:00:20]} 23. Qc5+ {[%clk 0:01:15]}  Qc6 {[%clk 0:00:20]} 24. Qe7 {[%clk 0:00:49]}  Rd7 {[%clk 0:00:13]} 25. Qb4 {[%clk 0:00:43]}  Rhd8 {[%clk 0:00:11]} 26. Rxd7 {[%clk 0:00:41]}  Qxd7 {[%clk 0:00:09]} 27. Rxg7 {[%clk 0:00:39]}  Qd1+ {[%clk 0:00:08]} 28. Kb2 {[%clk 0:00:40]}  Qd5 {[%clk 0:00:08]} 29. Qc3+ {[%clk 0:00:36]}  Qc6 {[%clk 0:00:09]} 30. Rxh7 {[%clk 0:00:22]}  Qxc3+ {[%clk 0:00:08]} 31. Kxc3 {[%clk 0:00:23]}  Rd7 {[%clk 0:00:07]} 32. Bb6 {[%clk 0:00:23]}  Be4 {[%clk 0:00:07]} 33. Rh8+ {[%clk 0:00:21]}  Kb7 {[%clk 0:00:07]} 34. Bc5 {[%clk 0:00:21]}  Rc7 {[%clk 0:00:07]} 35. b4 {[%clk 0:00:21]}  Bg6 {[%clk 0:00:07]} 36. Kd4 {[%clk 0:00:20]}  Rd7+ {[%clk 0:00:06]} 37. Bd6 {[%clk 0:00:21]}  Bxc2 {[%clk 0:00:06]} 38. Rb8+ {[%clk 0:00:20]}  Ka7 {[%clk 0:00:05]} 39. Rc8 {[%clk 0:00:21]}  Bf5 {[%clk 0:00:05]} 40. Kc5 {[%clk 0:00:18]}  Be4 {[%clk 0:00:01]} 41. a3 {[%clk 0:00:17]}  Bb7 {[%clk 0:00:01]} 42. Rh8 {[%clk 0:00:15]}  Bd5 {[%clk 0:00:00]} 43. Rf8 {[%clk 0:00:14]} 1-0


[Site "https://www.chess.com"]

[Event "Titled Tuesday Blitz October 31 Late 2023"]
[White "Mmukka"]
[Black "Schut, Han"]
[BlackFideId "1005561"]
[WhiteElo "2460"]
[BlackElo "2305"]
[Result "1-0"]
[Round "6"]
[TimeControl "180+1"]
[Date "2023.10.31"]
[WhiteClock "0:00:11"]
[BlackClock "0:00:00"]
[Board "102"]

1. e4 {[%clk 0:02:59]}  c5 {[%clk 0:02:56]} 2. Nf3 {[%clk 0:02:58]}  d6 {[%clk 0:02:56]} 3. d4 {[%clk 0:02:59]}  cxd4 {[%clk 0:02:57]} 4. Nxd4 {[%clk 0:02:59]}  Nf6 {[%clk 0:02:57]} 5. Nc3 {[%clk 0:02:59]}  a6 {[%clk 0:02:58]} 6. h3 {[%clk 0:02:56]}  e6 {[%clk 0:02:57]} 7. g4 {[%clk 0:02:55]}  d5 {[%clk 0:02:54]} 8. exd5 {[%clk 0:02:43]}  Nxd5 {[%clk 0:02:54]} 9. Bg2 {[%clk 0:02:43]}  Bb4 {[%clk 0:02:54]} 10. Ne2 {[%clk 0:02:38]}  Nc6 {[%clk 0:02:05]} 11. Bd2 {[%clk 0:02:24]}  Bxc3 {[%clk 0:02:04]} 12. Nxc3 {[%clk 0:02:24]}  Nxc3 {[%clk 0:01:56]} 13. Bxc3 {[%clk 0:02:25]}  Qxd1+ {[%clk 0:01:33]} 14. Rxd1 {[%clk 0:02:26]}  f6 {[%clk 0:01:25]} 15. O-O {[%clk 0:02:17]}  Ke7 {[%clk 0:01:15]} 16. Bxc6 {[%clk 0:02:01]}  bxc6 {[%clk 0:01:14]} 17. Bb4+ {[%clk 0:02:01]}  Kf7 {[%clk 0:01:05]} 18. Bc5 {[%clk 0:02:01]}  h5 {[%clk 0:00:58]} 19. Rd6 {[%clk 0:01:20]}  hxg4 {[%clk 0:00:57]} 20. hxg4 {[%clk 0:01:20]}  e5 {[%clk 0:00:58]} 21. f3 {[%clk 0:01:17]}  Be6 {[%clk 0:00:56]} 22. b3 {[%clk 0:01:12]}  Rac8 {[%clk 0:00:52]} 23. c4 {[%clk 0:01:10]}  e4 {[%clk 0:00:41]} 24. fxe4 {[%clk 0:01:09]}  Bxg4 {[%clk 0:00:41]} 25. e5 {[%clk 0:01:08]}  f5 {[%clk 0:00:37]} 26. e6+ {[%clk 0:01:03]}  Kf6 {[%clk 0:00:29]} 27. Re1 {[%clk 0:01:00]}  Kg5 {[%clk 0:00:11]} 28. e7 {[%clk 0:00:56]}  Rce8 {[%clk 0:00:08]} 29. Kg2 {[%clk 0:00:34]}  f4 {[%clk 0:00:08]} 30. Bd4 {[%clk 0:00:22]}  g6 {[%clk 0:00:06]} 31. Bxh8 {[%clk 0:00:21]}  Rxh8 {[%clk 0:00:05]} 32. e8=Q {[%clk 0:00:11]}  f3+ {[%clk 0:00:00]} 33. Kg1 {[%clk 0:00:11]} 1-0


[Site "https://www.chess.com"]

[Event "Titled Tuesday Blitz October 31 Late 2023"]
[White "ATM622"]
[Black "Vifleemskaia, Svetlana"]
[BlackFideId "4129490"]
[WhiteElo "2451"]
[BlackElo "2288"]
[Result "1/2-1/2"]
[Round "6"]
[TimeControl "180+1"]
[Date "2023.10.31"]
[WhiteClock "0:00:03"]
[BlackClock "0:00:06"]
[Board "103"]

1. d4 {[%clk 0:03:00]}  Nf6 {[%clk 0:02:58]} 2. c4 {[%clk 0:03:01]}  e6 {[%clk 0:02:58]} 3. g3 {[%clk 0:03:00]}  Bb4+ {[%clk 0:02:59]} 4. Nd2 {[%clk 0:03:00]}  O-O {[%clk 0:02:57]} 5. Bg2 {[%clk 0:03:00]}  d6 {[%clk 0:02:56]} 6. Nf3 {[%clk 0:03:00]}  Qe7 {[%clk 0:02:55]} 7. O-O {[%clk 0:02:59]}  Bxd2 {[%clk 0:02:51]} 8. Bxd2 {[%clk 0:02:56]}  e5 {[%clk 0:02:52]} 9. dxe5 {[%clk 0:02:50]}  dxe5 {[%clk 0:02:52]} 10. Bc3 {[%clk 0:02:50]}  Nc6 {[%clk 0:02:48]} 11. b4 {[%clk 0:02:48]}  Rd8 {[%clk 0:02:14]} 12. Qa4 {[%clk 0:02:33]}  Nd4 {[%clk 0:02:05]} 13. Rfe1 {[%clk 0:01:50]}  Bd7 {[%clk 0:01:39]} 14. b5 {[%clk 0:01:43]}  c5 {[%clk 0:01:28]} 15. e3 {[%clk 0:01:30]}  Nxf3+ {[%clk 0:01:21]} 16. Bxf3 {[%clk 0:01:31]}  Bf5 {[%clk 0:01:18]} 17. Rad1 {[%clk 0:01:19]}  e4 {[%clk 0:01:14]} 18. Bg2 {[%clk 0:01:18]}  Rd3 {[%clk 0:01:09]} 19. Bb2 {[%clk 0:00:57]}  a6 {[%clk 0:01:00]} 20. Qa5 {[%clk 0:00:37]}  Qe6 {[%clk 0:00:51]} 21. Qc7 {[%clk 0:00:27]}  axb5 {[%clk 0:00:22]} 22. Qxb7 {[%clk 0:00:23]}  Rad8 {[%clk 0:00:18]} 23. Rc1 {[%clk 0:00:15]}  bxc4 {[%clk 0:00:15]} 24. Qc7 {[%clk 0:00:13]}  Qd6 {[%clk 0:00:09]} 25. Qa7 {[%clk 0:00:05]}  Qd5 {[%clk 0:00:07]} 26. Bxf6 {[%clk 0:00:04]}  gxf6 {[%clk 0:00:08]} 27. Qe7 {[%clk 0:00:04]}  Qe5 {[%clk 0:00:06]} 28. Qb7 {[%clk 0:00:03]}  Qd5 {[%clk 0:00:06]} 29. Qxd5 {[%clk 0:00:03]}  R8xd5 {[%clk 0:00:05]} 30. Rxc4 {[%clk 0:00:03]}  Rd1 {[%clk 0:00:05]} 31. Kf1 {[%clk 0:00:03]}  R1d2 {[%clk 0:00:03]} 32. Bxe4 {[%clk 0:00:02]}  Bxe4 {[%clk 0:00:03]} 33. Rxe4 {[%clk 0:00:03]}  Rxa2 {[%clk 0:00:03]} 34. Kg2 {[%clk 0:00:03]}  Rdd2 {[%clk 0:00:03]} 35. Rf1 {[%clk 0:00:03]}  Rdc2 {[%clk 0:00:03]} 36. Re8+ {[%clk 0:00:02]}  Kg7 {[%clk 0:00:04]} 37. Rc8 {[%clk 0:00:03]}  Kg6 {[%clk 0:00:04]} 38. Kf3 {[%clk 0:00:03]}  c4 {[%clk 0:00:04]} 39. Rc5 {[%clk 0:00:02]}  f5 {[%clk 0:00:04]} 40. h4 {[%clk 0:00:02]}  h5 {[%clk 0:00:04]} 41. Rc6+ {[%clk 0:00:02]}  f6 {[%clk 0:00:04]} 42. Rc5 {[%clk 0:00:02]}  Rab2 {[%clk 0:00:04]} 43. Rc7 {[%clk 0:00:02]}  Ra2 {[%clk 0:00:05]} 44. Kg2 {[%clk 0:00:03]}  Rab2 {[%clk 0:00:05]} 45. Kf3 {[%clk 0:00:03]}  Ra2 {[%clk 0:00:05]} 46. Rc8 {[%clk 0:00:03]}  Rab2 {[%clk 0:00:05]} 47. Rc6 {[%clk 0:00:03]}  Ra2 {[%clk 0:00:05]} 48. Rc5 {[%clk 0:00:03]}  Rab2 {[%clk 0:00:05]} 49. Ra5 {[%clk 0:00:03]}  Ra2 {[%clk 0:00:06]} 50. Rc5 {[%clk 0:00:03]} 1/2-1/2


[Site "https://www.chess.com"]